[Event "Bionext Festival 2019"]
[Site "Chihuahua"]
[Date "2019.12.01"]
[Round "5.5"]
[White "Gomez, Zuniga David Fernand"]
[Black "Corrales Jimenez, Zenia"]
[Result "1-0"]
[ECO "D77"]
[WhiteElo "2078"]
[BlackElo "2219"]
[Annotator "RC"]
[PlyCount "45"]
[EventDate "2019.11.30"]
[EventType "swiss"]
[EventCountry "MEX"]
[SourceTitle "playchess.com"]
[Source "ChessBase"]
[SourceQuality "1"]
[TimeControl "5400+30"]

1. d4 {[%emt 0:00:00]} Nf6 {[%emt 0:00:09]} 2. Nf3 {[%emt 0:00:00]} g6 {[%emt 0:00:06]} 3. g3 {[%emt 0:00:00]} Bg7 {[%emt 0:00:10]} 4. Bg2 {[%emt 0:00:00]} O-O {[%emt 0:00:26]} 5. c4 {[%emt 0:00:03]} d5 {[%emt 0:00:05]} 6. O-O {[%emt 0:00:05]} dxc4 {[%emt 0:00:31]} 7. Na3 {[%emt 0:00:40]} Nc6 {[%emt 0:00:42]} 8. Nxc4 {[%emt 0:00:28]} Be6 {[%emt 0:00:10]} 9. b3 {[%emt 0:00:09]} Bd5 {[%emt 0:00:28]} 10. Bb2 {[%emt 0:00:07]} a5 {[%emt 0:00:40]} 11. Rc1 {[%emt 0:00:07]} Qc8 {[%emt 0:00:05]} 12. Nfe5 {[%emt 0:16:07]} Bxg2 {[%emt 0:12:28]} 13. Kxg2 {[%emt 0:02:24]} Qe6 {[%emt 0:00:18]} 14. e3 {[%emt 0:09:06]} Nxe5 {[%emt 0:11:34]} 15. Nxe5 {[%emt 0:00:52]} c6 {[%emt 0:00:44]} 16. a3 {[%emt 0:19:45]} Rfd8 {[%emt 0:07:19]} 17. Kg1 {[%emt 0:04:03]} c5 {[%emt 0:05:50]} 18. Rxc5 {[%emt 0:09:46]} Ne4 {[%emt 0:00:18]} 19. Rb5 {[%emt 0:00:15]} Qa6 {[%emt 0:17:09]} 20. a4 {[%emt 0:00:52]} Nd6 {[%emt 0:00:45]} 21. Rc5 {[%emt 0:00:40]} Ne4 {[%emt 0:01:18]} 22. Rb5 {[%emt 0:00:40]} b6 {[%emt 0:39:45]} 23. Nc4 {[%emt 0:35:21]} 1-0

[Event "Bionext Festival 2019"]
[Site "Chihuahua"]
[Date "2019.12.01"]
[Round "5.11"]
[White "Martinez Castaneda, Allan"]
[Black "Lugo Aldana, Alejandro"]
[Result "0-1"]
[ECO "B43"]
[WhiteElo "2045"]
[BlackElo "1570"]
[Annotator "NA RC"]
[PlyCount "92"]
[EventDate "2019.11.30"]
[EventType "swiss"]
[EventCountry "MEX"]
[SourceTitle "playchess.com"]
[Source "ChessBase"]
[SourceQuality "1"]
[TimeControl "5400+30"]

{[%evp 21,91,0,0,-27,32767,32767,32767,32767,32767,45,128,89,32767,32767,32767,32767,32767,32767,32767,32767,32767,1,43,45,71,32767,50,0,59,62,64,67,64,-70,-66,-154,-156,-205,-206,32767,-358,-402,-331,-414,-293,-342,-301,32767,-249,-695,-1010,-1007,-1129,32767,32767,32767,-1187,-29992,-29988,-29988,-29989,-29989,-1116,-29981,-1500,-1524,-258,-2231,-2716,-2449,32767,-29999]} 1. e4 {[%emt 1:30:30]} c5 {[%emt 1:30:30]} 2. Nf3 {[%emt 0:00:30]} e6 {[%emt 0:00:30]} 3. d4 {[%emt 0:00:30]} cxd4 {[%emt 0:00:30]} 4. Nxd4 {[%emt 0:00:30]} a6 {[%emt 0:00:30]} 5. Nc3 {[%emt 0:00:30]} Qc7 6. g3 {[%emt 0:00:30]} Bb4 {[%emt 0:01:00]} 7. Bd2 {[%emt 0:00:30]} Nf6 {[%emt 0:00:30]} 8. Bg2 {[%emt 0:00:30]} Nc6 {[%emt 0:00:30]} 9. Nxc6 {[%emt 0:00:30]} dxc6 {[%emt 0:00:30]} 10. O-O {[%emt 0:00:30]} O-O {[%emt 0:00:30]} 11. Qe2 {[%emt 0:00:30] B43: Sicilian: Kan Variation: 5 Nc3} (11. a3 Be7 {½-½ (11) Perez Mitjans,O (2429)-Bruzon Batista,L (2699) Azuqueca de Henares 2013}) 11... e5 {[%emt 0:00:30]} 12. Kh1 {[%emt 0:00:30]} b5 $146 {[%emt 0:00:30]} ({Predecessor:} 12... Be6 13. a3 Be7 14. f4 b5 15. b3 Rad8 16. f5 Bc8 17. g4 Nxg4 18. Qxg4 Rxd2 {0-1 (33) Potier,P (1610)-Le Corre,P (1999) Morbihan 2010}) 13. Nxb5 {[%emt 0:00:30]} cxb5 {[%emt 0:00:30]} 14. Bxb4 {[%emt 0:00:30]} Rd8 15. a3 {[%emt 0:00:30]} (15. Rfd1 $16) 15... Be6 {[%emt 0:01:00]} (15... a5 $14) 16. Rfc1 {[%emt 0:00:30]} Rab8 {[%emt 0:00:30]} 17. Qe1 {[%emt 0:00:30]} Rd4 {[%emt 0:00:30]} 18. b3 {[%emt 0:00:30]} Rc8 {[%emt 0:00:30]} 19. f3 {[%emt 0:00:30]} h6 {[%emt 0:00:30]} 20. Bd2 {[%emt 0:00:30]} Rd6 {[%emt 0:00:30]} 21. f4 {[%emt 0:00:30]} Rc6 {[%emt 0:00:30]} 22. f5 {[%emt 0:00:30]} Bd7 23. Ra2 {[%emt 0:00:30]} Be8 {[%emt 0:01:00]} 24. Bf3 {[%emt 0:00:30]} (24. Bb4 $14) 24... Nd7 {[%emt 0:00:30]} (24... Rd6 $15) 25. g4 {[%emt 0:00:30]} f6 {[%emt 0:00:30]} 26. h4 {[%emt 0:00:30]} Bf7 {[%emt 0:00:30]} 27. Qe2 {[%emt 0:00:30]} (27. Qe3 $16) 27... Bxb3 $1 {[%emt 0:00:30] Pin} 28. Rb2 {[%emt 0:00:30]} ({Better is} 28. cxb3 $15 Rxc1+ 29. Bxc1 Qxc1+ 30. Kg2) 28... Bxc2 {[%emt 0:00:30]} 29. Kh2 {[%emt 0:00:30] [#]} Bxe4 $1 {[%emt 0:00:30]} 30. Rxc6 {[%emt 0:00:30]} Bxc6 31. Bxc6 {[%emt 0:00:30]} Qxc6 {[%emt 0:01:00]} 32. Bb4 {[%emt 0:00:30]} Qc1 {[%emt 0:00:30]} 33. Rd2 {[%emt 0:00:30]} Nb6 $19 {[%emt 0:00:30]} 34. Qd3 {[%emt 0:00:30]} Qe1 {[%emt 0:00:30]} 35. Qd8+ $2 {[%emt 0:00:30]} (35. Qg3 Qe4 36. g5 hxg5 37. hxg5 fxg5 38. Qxg5) 35... Kh7 {[%emt 0:00:30]} 36. Qxb6 {[%emt 0:00:30]} Qxh4+ {[%emt 0:00:30]} 37. Kg2 {[%emt 0:00:30]} Qxg4+ {[%emt 0:00:30]} 38. Kf2 {[%emt 0:00:30]} Rc1 {[%emt 0:00:30]} 39. Ba5 {[%emt 0:00:30]} Qf4+ {[%emt 0:00:30]} 40. Kg2 {[%emt 0:00:30]} Qe4+ {[%emt 0:00:30]} 41. Kf2 {[%emt 0:00:30]} Qe1+ {[%emt 0:00:30]} (41... Qxf5+ $142 42. Kg2 Qg4+ 43. Kf2 e4 44. Ke3 Re1+ 45. Kd4 e3+ 46. Kc5 Qc4+ 47. Kd6 exd2 48. Qc5 d1=Q+ 49. Bd2 Qxd2+ 50. Kc6 Qxc5+ 51. Kxc5 Re6 52. a4 Qd6#) 42. Kf3 {[%emt 0:00:30]} e4+ {[%emt 0:00:30]} (42... Rc4 $142 43. Rf2 Qe4+ 44. Kg3 Qg4+ 45. Kh2 Qg5 46. Kh1 Rc1+ 47. Be1 Rxe1+ 48. Kh2 Qh4+ 49. Kg2 Qh1+ 50. Kg3 Rg1+ 51. Rg2 Qxg2+ 52. Kh4 Qh2#) 43. Kf4 {[%emt 0:00:30]} Qh4+ $2 {[%emt 0:00:30]} (43... Rc4 44. Rd7 e3+ 45. Rd4 Qf2+ 46. Ke4 e2) 44. Ke3 {[%emt 0:00:30]} Re1+ {[%emt 0:00:30]} 45. Re2 {[%emt 0:00:30]} Qg5+ {[%emt 0:00:30]} 46. Kf2 {[%emt 0:00:30]} Qg1# {[%emt 0:00:30]} 0-1

[Event "Bionext Festival 2019"]
[Site "Chihuahua"]
[Date "2019.12.01"]
[Round "5.12"]
[White "Carballo Jacquez, Emmanuel"]
[Black "Mendoza Gandara, Jose David"]
[Result "1/2-1/2"]
[ECO "C01"]
[WhiteElo "1616"]
[BlackElo "2037"]
[Annotator "NA RC"]
[PlyCount "86"]
[EventDate "2019.11.30"]
[EventType "swiss"]
[EventCountry "MEX"]
[SourceTitle "playchess.com"]
[Source "ChessBase"]
[SourceQuality "1"]
[TimeControl "5400+30"]

1. e4 {[%emt 1:30:30]} e6 {[%emt 1:30:30]} 2. d4 {[%emt 0:00:30]} d5 {[%emt 0:00:30]} 3. exd5 {[%emt 0:00:30]} exd5 {[%emt 0:00:30]} 4. Bd3 {[%emt 0:00:30]} g6 {[%emt 0:00:30]} (4... Nc6 5. c3 Bd6 6. Qf3 Be6 7. Bf4 Nf6 8. Ne2 O-O 9. Bxd6 Qxd6 10. Qf4 Rad8 11. Na3 Ne7 12. Qxd6 Rxd6 13. Ng3 Ng6 14. Ne2 Nh4 {½-½ (43) Yu,Y (2752)-Rapport,R (2747) Saint Louis 2019}) 5. Bf4 {[%emt 0:00:30]} Bg7 {[%emt 0:00:30]} 6. Nf3 {[%emt 0:00:30] C01: French: Exchange Variation} Ne7 {[%emt 0:00:30]} 7. O-O {[%emt 0:00:30]} O-O {[%emt 0:00:30]} 8. h3 $146 {[%emt 0:00:30]} ({Predecessor:} 8. Re1 Nbc6 9. c3 Bf5 10. Qc2 Bxd3 11. Qxd3 Nf5 12. Qb5 Rb8 13. Nbd2 a6 14. Qc5 Qd7 15. Ne5 Nxe5 16. Bxe5 Bxe5 17. Rxe5 Rfe8 18. Qa7 {½-½ (18) Feyer,L (1660)-Hahlbohm,M (2074) Berlin 2014}) 8... Re8 {[%emt 0:00:30]} 9. c3 {[%emt 0:00:30]} Nd7 {[%emt 0:00:30]} 10. Nbd2 {[%emt 0:00:30]} Nf8 {[%emt 0:00:30]} 11. Re1 {[%emt 0:00:30]} f6 {[%emt 0:00:30]} 12. Nf1 {[%emt 0:00:30]} Be6 {[%emt 0:00:30]} 13. Qb3 {[%emt 0:00:30]} b6 {[%emt 0:00:30]} 14. Re2 {[%emt 0:00:30]} Qd7 {[%emt 0:00:30]} 15. Rae1 {[%emt 0:00:30]} Rad8 {[%emt 0:00:30]} 16. Qc2 {[%emt 0:00:30]} c6 {[%emt 0:00:30]} 17. Qd2 {[%emt 0:00:30]} Bf7 {[%emt 0:00:30]} 18. Bh6 {[%emt 0:00:30]} Bh8 {[%emt 0:00:30]} 19. Bf4 {[%emt 0:00:30]} Bg7 {[%emt 0:00:30]} 20. Bh6 {[%emt 0:00:30]} Bh8 {[%emt 0:00:30]} 21. Bf4 {[%emt 0:00:30]} g5 {[%emt 0:00:30]} 22. Bh2 {[%emt 0:00:30]} Bg7 {[%emt 0:00:30]} 23. Ng3 {[%emt 0:00:30]} h5 {[%emt 0:00:30]} 24. Qc2 {[%emt 0:00:30]} h4 {[%emt 0:00:30]} 25. Nf5 {[%emt 0:00:30]} Nxf5 {[%emt 0:00:30]} 26. Bxf5 {[%emt 0:00:30]} Be6 {[%emt 0:00:30]} 27. Bxe6+ {[%emt 0:00:30]} Rxe6 {[%emt 0:00:30]} 28. Rxe6 {[%emt 0:00:30]} Nxe6 {[%emt 0:00:30]} 29. Qf5 {[%emt 0:00:30]} Re8 {[%emt 0:00:30]} 30. Qg4 {[%emt 0:00:30]} Nf8 {[%emt 0:00:30]} (30... Qf7 $5 {[%cal Rf6f5]} 31. Qf5 Bf8 $11) 31. Qxd7 {[%emt 0:00:30]} Rxe1+ {[%emt 0:00:30]} 32. Nxe1 {[%emt 0:00:30]} Nxd7 {[%emt 0:00:30]} 33. Nf3 {[%emt 0:00:30]} Kf7 {[%emt 0:00:30]} 34. Kf1 {[%emt 0:00:30]} c5 {[%emt 0:00:30]} 35. Ke2 {[%emt 0:00:30]} Bf8 {[%emt 0:00:30]} 36. Ne1 {[%emt 0:00:30]} Ke6 {[%emt 0:00:30]} 37. Kf3 {[%emt 0:00:30]} c4 $11 {[%emt 0:00:30]} 38. Kg4 {[%emt 0:00:30]} Be7 {[%emt 0:00:30]} 39. f4 {[%emt 0:00:30]} f5+ {[%emt 0:00:30]} 40. Kh5 {[%emt 0:00:30]} Nf6+ {[%emt 0:00:30]} 41. Kh6 {[%emt 0:00:30]} Ne4 {[%emt 0:00:30]} 42. fxg5 {[%emt 0:00:30]} Bxg5+ {[%emt 0:00:30]} 43. Kh5 {[%emt 0:00:30]} Bc1 {[%emt 0:00:30]} 1/2-1/2